bitfinex/quotes_BTCUSD_20230110
["timestamp","ask_amount","ask_price","bid_price","bid_amount"]
[1673368310653,2.73235733,17326.0,17325.0,11.719893]
[1673368311132,2.53135733,17326.0,17325.0,11.719893]
[1673368311394,2.27184064,17326.0,17325.0,11.719893]
[1673368311909,0.27184064,17326.0,17325.0,11.719893]
[1673368312155,0.27184064,17326.0,17325.0,11.798484]
[1673368312403,0.27184064,17326.0,17325.0,11.719893]
[1673368318070,0.27184064,17326.0,17325.0,11.719893]
[1673368319583,0.53135733,17326.0,17325.0,11.719893]
[1673368320106,0.27184064,17326.0,17325.0,11.719893]
[1673368321133,0.09916394,17326.0,17325.0,11.719893]
[1673368322635,0.09066394,17326.0,17325.0,13.65152281]
[1673368323671,0.09066394,17326.0,17325.0,12.952884]
[1673368323973,0.09066394,17326.0,17325.0,13.66963096]
[1673368324238,0.09066394,17326.0,17325.0,12.952884]
[1673368324468,0.09066394,17326.0,17325.0,14.26713535]
[1673368324794,0.03766394,17326.0,17325.0,14.26513535]
[1673368324965,0.05266394,17326.0,17325.0,14.28513535]
[1673368325272,0.05266394,17326.0,17325.0,13.670884]
[1673368326003,0.05266394,17326.0,17325.0,14.30605269]
[1673368326243,0.05266394,17326.0,17325.0,13.67120501]
[1673368326539,0.05266394,17326.0,17325.0,14.4055551]
[1673368326779,0.05266394,17326.0,17325.0,13.84312956]
[1673368326972,0.05266394,17326.0,17325.0,14.51695437]
[1673368327260,0.05266394,17326.0,17325.0,13.67120501]
[1673368327518,0.05266394,17326.0,17325.0,14.3670933]
[1673368327776,0.05266394,17326.0,17325.0,14.88326193]
[1673368328062,0.05266394,17326.0,17325.0,15.18326193]
[1673368328312,0.05266394,17326.0,17325.0,14.88326193]
[1673368328587,0.05266394,17326.0,17325.0,15.35536224]
[1673368328825,0.05266394,17326.0,17325.0,15.01128576]
[1673368329340,0.05266394,17326.0,17325.0,15.34109947]
[1673368329636,0.05266394,17326.0,17325.0,15.35536224]
[1673368329852,0.27277058,17330.0,17326.0,0.20293549]
[1673368330105,0.27277058,17330.0,17328.0,0.2]
[1673368330374,0.27277058,17330.0,17329.0,1.816613]
[1673368331130,0.27277058,17330.0,17329.0,2.516613]
[1673368332154,0.27277058,17330.0,17329.0,3.12173039]
[1673368332678,0.27277058,17330.0,17329.0,3.18747763]
[1673368333426,0.29877058,17330.0,17329.0,3.18747763]
[1673368333676,0.27277058,17330.0,17329.0,3.18779855]
[1673368334184,0.27477058,17330.0,17329.0,3.32779855]
[1673368334456,0.27277058,17330.0,17329.0,3.18779855]
[1673368334714,0.27477058,17330.0,17329.0,3.32779855]
[1673368338034,0.27477058,17330.0,17329.0,3.32094855]
[1673368338254,0.27477058,17330.0,17329.0,2.649763]
[1673368338504,0.27477058,17330.0,17329.0,2.072696]
[1673368339535,0.27277058,17330.0,17329.0,1.932696]
[1673368339795,0.27377058,17330.0,17329.0,2.029696]
[1673368340555,0.27277058,17330.0,17329.0,1.932696]
[1673368340855,0.27277058,17330.0,17329.0,1.257696]
[1673368341610,0.27277058,17330.0,17329.0,1.179134]
[1673368341907,0.27277058,17330.0,17329.0,0.602067]
[1673368342633,0.27277058,17330.0,17329.0,0.577067]
[1673368343126,0.29877058,17330.0,17329.0,0.584067]
[1673368345206,0.29877058,17330.0,17329.0,0.58395277]
[1673368345473,0.29877058,17330.0,17329.0,0.007]
[1673368349588,0.47115495,17330.0,17329.0,0.007]
[1673368349853,0.72964047,17330.0,17329.0,0.007]
[1673368350096,1.22964047,17330.0,17329.0,0.007]
[1673368350347,2.01326794,17330.0,17329.0,0.007]
[1673368350599,0.93814047,17330.0,17329.0,0.007]
[1673368352605,1.2827962,17330.0,17329.0,0.007]
[1673368352874,1.84088357,17330.0,17329.0,0.007]
[1673368353130,2.20199157,17330.0,17329.0,0.007]
[1673368353638,2.37431526,17330.0,17329.0,0.007]
[1673368354138,3.94151179,17330.0,17329.0,0.007]
[1673368354396,3.94151179,17330.0,17329.0,0.00029699]
[1673368354397,4.19080373,17330.0,17329.0,0.00029699]
[1673368355423,4.16543538,17330.0,17326.0,1.26487883]
[1673368355672,1.45220705,17330.0,17329.0,0.011]
[1673368355924,3.84189549,17330.0,17329.0,0.011]
[1673368356171,4.20300349,17330.0,17329.0,0.011]
[1673368356430,0.001,17329.0,17326.0,1.26487883]
[1673368356678,0.17257426,17328.0,17327.0,0.2]
[1673368356931,0.17257426,17328.0,17326.0,1.26487883]
[1673368357191,0.17257426,17328.0,17327.0,0.2]
[1673368357707,0.17257426,17328.0,17326.0,1.26487883]
[1673368358203,0.17257426,17328.0,17327.0,0.2]
[1673368358486,0.17257426,17328.0,17326.0,1.26487883]
[1673368358747,0.17257426,17328.0,17327.0,0.2]
[1673368359504,0.43143564,17328.0,17327.0,0.2]
[1673368359769,0.17257426,17328.0,17327.0,0.2]
[1673368360007,0.17257426,17328.0,17326.0,1.26487883]
[1673368360257,0.46443564,17328.0,17327.0,0.001]
[1673368360533,0.46399933,17328.0,17326.0,1.26487883]
[1673368360826,0.49599933,17328.0,17327.0,0.008]
[1673368361083,0.84114784,17328.0,17327.0,0.008]
[1673368361367,2.98445059,17328.0,17327.0,0.008]
[1673368361637,3.91560544,17328.0,17326.0,0.68773583]
[1673368361885,1.17401576,17327.0,17326.0,0.68873583]
[1673368362147,1.2433795,17327.0,17326.0,0.68873583]
[1673368362512,0.98531917,17327.0,17326.0,0.68773583]
[1673368362514,2.55358607,17327.0,17326.0,0.68773583]
[1673368362736,1.97574695,17327.0,17326.0,0.68773583]
[1673368362925,1.1138319,17327.0,17326.0,0.68773583]
[1673368363405,2.8138319,17327.0,17326.0,0.68773583]
[1673368363702,2.8458319,17327.0,17326.0,0.69573583]
[1673368363886,2.67308399,17327.0,17326.0,0.69573583]
[1673368364353,2.67208399,17327.0,17326.0,0.69573583]
[1673368364586,2.67308399,17327.0,17326.0,0.69573583]
[1673368365306,2.47308399,17327.0,17326.0,0.69573583]
[1673368366504,2.4730399,17327.0,17326.0,0.69573583]
[1673368368163,2.21408386,17327.0,17326.0,0.69573583]
[1673368371013,2.4730399,17327.0,17326.0,0.69573583]
[1673368371235,2.7730399,17327.0,17326.0,0.69573583]
[1673368372181,2.21408386,17327.0,17326.0,0.69573583]
[1673368372928,2.4730399,17327.0,17326.0,0.69573583]
[1673368373192,2.21408386,17327.0,17326.0,0.69573583]
[1673368373695,2.0415,17327.0,17326.0,0.69573583]
[1673368373948,0.033,17327.0,17326.0,1.59628701]
[1673368374195,0.033,17327.0,17326.0,1.67486901]
[1673368374456,0.033,17327.0,17326.0,2.25203601]
[1673368374707,0.033,17327.0,17326.0,2.82920301]
[1673368374961,0.032,17327.0,17326.0,2.82920301]
[1673368376700,0.032,17327.0,17326.0,2.8291219]
[1673368378749,0.032,17327.0,17326.0,2.6291219]
[1673368379008,0.032,17327.0,17326.0,2.0519549]
[1673368379754,0.032,17327.0,17326.0,1.9733729]
[1673368380006,0.20458386,17327.0,17326.0,1.9733729]
[1673368380261,0.032,17327.0,17326.0,2.0519549]
[1673368380513,0.032,17327.0,17326.0,1.9733729]
[1673368380755,0.20458386,17327.0,17326.0,1.9733729]
[1673368383554,0.20458386,17327.0,17326.0,2.0519549]
[1673368384310,0.032,17327.0,17326.0,2.6291219]
[1673368385593,0.032,17327.0,17326.0,1.94146718]
[1673368386687,0.032,17327.0,17326.0,2.64146718]
[1673368388234,0.032,17327.0,17326.0,1.94178817]
[1673368389039,0.20458386,17327.0,17326.0,0.663749]
[1673368389251,0.25739422,17327.0,17326.0,0.008]
[1673368389504,0.4635399,17327.0,17326.0,0.008]
[1673368391537,0.80991576,17327.0,17326.0,0.008]
[1673368391788,0.4645399,17327.0,17326.0,0.008]
[1673368393291,0.4635399,17327.0,17326.0,0.008]
[1673368393533,0.4635399,17327.0,17326.0,0.086582]
[1673368393782,0.4635399,17327.0,17326.0,0.008]
[1673368394776,0.4635399,17327.0,17326.0,0.086582]
[1673368395024,0.4635399,17327.0,17326.0,0.008]
[1673368395284,0.6363319,17327.0,17326.0,0.008]
[1673368396016,0.80923913,17327.0,17326.0,0.008]
[1673368396263,0.6363319,17327.0,17326.0,0.008]
[1673368398279,2.4596374,17327.0,17326.0,0.008]
[1673368398534,3.25121714,17327.0,17326.0,0.008]
[1673368398796,2.77677525,17327.0,17326.0,0.008]
[1673368399047,2.70643994,17327.0,17326.0,0.00791724]
[1673368399305,2.34533194,17327.0,17326.0,0.00791724]
[1673368399813,1.6148602,17327.0,17326.0,0.00791724]
[1673368400070,4.04711675,17327.0,17326.0,0.00791724]
[1673368401330,4.39290069,17327.0,17326.0,0.00791724]
[1673368401841,4.39390069,17327.0,17326.0,0.00791724]
[1673368402341,2.64661474,17327.0,17326.0,0.00791724]
[1673368403583,0.64661474,17327.0,17326.0,0.00791724]
[1673368403831,0.64561474,17327.0,17326.0,0.00791724]
[1673368404087,1.80029377,17327.0,17326.0,0.00791724]
[1673368404835,1.97321952,17327.0,17326.0,0.00791724]
[1673368405322,2.23257668,17327.0,17326.0,0.00791724]
[1673368405567,1.80032013,17327.0,17326.0,0.00791724]
[1673368405815,2.23357668,17327.0,17326.0,0.00791724]
[1673368406318,2.23358634,17327.0,17326.0,0.00791724]
[1673368406561,1.97421952,17327.0,17326.0,0.00791724]
[1673368407311,2.39057502,17327.0,17326.0,0.00791724]
[1673368407822,2.38957502,17327.0,17326.0,0.00791724]
[1673368408094,2.34379108,17327.0,17326.0,0.00791724]
[1673368408622,2.34200627,17327.0,17326.0,0.00791724]
[1673368409152,3.46743357,17327.0,17326.0,0.00791724]
[1673368409397,4.30789106,17327.0,17326.0,0.00791724]
[1673368409928,3.81540023,17327.0,17326.0,0.00791724]
[1673368410182,3.29706194,17327.0,17326.0,0.00791724]
[1673368410448,2.5665902,17327.0,17326.0,0.00791724]
[1673368410711,2.63772716,17327.0,17326.0,0.00791724]
[1673368410961,2.99883516,17327.0,17326.0,0.00791724]
[1673368411717,2.63772716,17327.0,17326.0,0.00791724]
[1673368411961,2.99883516,17327.0,17326.0,0.00791724]
[1673368412723,2.63772716,17327.0,17326.0,0.00791724]
[1673368413233,2.98349749,17327.0,17326.0,0.00791724]
[1673368414003,2.63872716,17327.0,17326.0,0.00791724]
[1673368414504,2.99983516,17327.0,17326.0,0.00791724]
[1673368415014,3.29983516,17327.0,17326.0,0.00791724]
[1673368415274,2.63872716,17327.0,17326.0,0.00791724]
[1673368415531,2.9844989,17327.0,17326.0,0.00791724]
[1673368416038,2.9834989,17327.0,17326.0,0.00791724]
[1673368416302,2.93772716,17327.0,17326.0,0.00791724]
[1673368417083,2.99883516,17327.0,17326.0,0.00791724]
[1673368417323,2.63772716,17327.0,17326.0,0.00791724]
[1673368417566,3.16566625,17327.0,17326.0,0.00791724]
[1673368417808,3.82500103,17327.0,17326.0,0.00791724]
[1673368418325,2.93595394,17327.0,17326.0,0.00791724]
[1673368418601,3.29706194,17327.0,17326.0,0.00791724]
[1673368419097,3.45429223,17327.0,17326.0,0.00791724]
[1673368419344,2.93595394,17327.0,17326.0,0.00791724]
[1673368420093,2.5054822,17327.0,17326.0,0.00791724]
[1673368420589,2.2054822,17327.0,17326.0,0.00791724]
[1673368421110,2.04373478,17327.0,17326.0,0.00791724]
[1673368421358,2.38948528,17327.0,17326.0,0.00823823]
[1673368421615,2.38948528,17327.0,17326.0,0.00791724]
[1673368421871,2.04373478,17327.0,17326.0,0.00791724]
[1673368422132,2.04373478,17327.0,17326.0,0.00784178]
[1673368422385,2.34373478,17327.0,17326.0,0.00784178]
[1673368422650,2.40484278,17327.0,17326.0,0.00784178]
[1673368422904,2.34373478,17327.0,17326.0,0.00784178]
[1673368423152,2.27264253,17327.0,17326.0,0.00784178]
[1673368423670,1.91153453,17327.0,17326.0,0.00784178]
[1673368424946,2.27264253,17327.0,17326.0,0.00784178]
[1673368425196,2.47977772,17327.0,17326.0,0.00784178]
[1673368425449,3.50419713,17327.0,17326.0,0.00784178]
[1673368425954,3.14301796,17327.0,17326.0,0.00784178]
[1673368426209,3.81532906,17327.0,17326.0,0.00784178]
[1673368426464,7.38729632,17327.0,17326.0,0.0002937]
[1673368426715,7.38729632,17327.0,17325.0,11.7105521]
[1673368426716,0.2,17326.0,17325.0,11.7105521]
[1673368426969,2.47119441,17326.0,17325.0,11.7105521]
[1673368427236,6.93934526,17326.0,17325.0,11.7105521]
[1673368427784,7.51873632,17326.0,17325.0,11.7105521]
[1673368428039,6.93934526,17326.0,17325.0,11.7105521]
[1673368428334,4.62691619,17326.0,17325.0,11.7105521]
[1673368428549,4.17822894,17326.0,17325.0,11.7135521]
[1673368428809,5.34008319,17326.0,17325.0,11.7135521]
[1673368429581,7.68758119,17326.0,17325.0,11.7135521]
[1673368429838,8.39498919,17326.0,17325.0,11.7135521]
[1673368430088,7.87299438,17326.0,17325.0,11.7135521]
[1673368430336,8.47989438,17326.0,17325.0,11.7135521]
[1673368431376,9.06293126,17326.0,17325.0,11.7135521]
[1673368432150,8.47989438,17326.0,17325.0,11.7135521]
[1673368432387,8.08378137,17326.0,17325.0,10.12168347]
[1673368432638,8.60883912,17326.0,17325.0,10.12168347]
[1673368432888,8.66683271,17326.0,17325.0,10.12168347]
[1673368433671,8.08378137,17326.0,17325.0,10.12168347]
[1673368433936,8.14405841,17326.0,17325.0,10.12168347]
[1673368434183,8.72344947,17326.0,17325.0,10.12168347]
[1673368435212,9.30616638,17326.0,17325.0,10.05448202]
[1673368435463,8.72344947,17326.0,17325.0,9.94343493]
[1673368435711,8.87424308,17326.0,17325.0,9.94343493]
[1673368436242,8.73824308,17326.0,17325.0,9.94043493]
[1673368436503,8.87424308,17326.0,17325.0,9.94043493]
[1673368436769,8.87424308,17326.0,17325.0,8.57585341]
[1673368437298,9.45637976,17326.0,17325.0,8.57585341]
[1673368437582,9.4563804,17326.0,17325.0,8.37596864]
[1673368437816,9.3203804,17326.0,17325.0,8.37596864]
[1673368438078,9.45738091,17326.0,17325.0,8.37596864]
[1673368438329,9.32038091,17326.0,17325.0,8.37596864]
[1673368438660,9.39939038,17326.0,17325.0,8.37596864]
[1673368438834,8.81725255,17326.0,17325.0,8.37596864]
[1673368439078,9.39915468,17326.0,17325.0,8.37596864]
[1673368439329,9.45714521,17326.0,17325.0,8.37596864]
[1673368440098,8.87524308,17326.0,17325.0,8.30934038]
[1673368440356,8.87524308,17326.0,17325.0,3.24463401]
[1673368440614,8.87524308,17326.0,17325.0,0.62289849]
[1673368440615,9.11763984,17326.0,17325.0,0.62289849]
[1673368440864,8.75927487,17326.0,17325.0,0.33429849]
[1673368441118,9.04075649,17326.0,17325.0,0.33429849]
[1673368441704,5.78899834,17326.0,17325.0,0.33429849]
[1673368442468,5.72144475,17326.0,17325.0,0.33429849]
[1673368442735,5.26370174,17326.0,17325.0,0.33429849]
[1673368443498,6.08071901,17326.0,17325.0,0.33429849]
[1673368443791,6.02134133,17326.0,17325.0,0.33429849]
[1673368444277,6.51464552,17326.0,17325.0,0.33429849]
[1673368445308,5.84682167,17326.0,17325.0,0.33429849]
[1673368445562,6.36385191,17326.0,17325.0,0.33429849]
[1673368445805,5.87054772,17326.0,17325.0,0.33429849]
[1673368446063,5.57054772,17326.0,17325.0,0.33429849]
[1673368446316,4.64694044,17326.0,17325.0,0.33429849]
[1673368446557,4.63844044,17326.0,17325.0,0.33429849]
[1673368446806,5.06930581,17326.0,17325.0,0.33429849]
[1673368447049,5.64869687,17326.0,17325.0,0.33429849]
[1673368447299,5.2178315,17326.0,17325.0,0.33429849]
[1673368447558,5.5178315,17326.0,17325.0,0.33429849]
[1673368448056,5.5263315,17326.0,17325.0,0.33429849]
[1673368448307,4.94694044,17326.0,17325.0,0.33429849]
[1673368448811,5.46397068,17326.0,17325.0,0.33429849]
[1673368449568,5.81283772,17326.0,17325.0,0.33429849]
[1673368450085,5.87222993,17326.0,17325.0,0.33429849]
[1673368450369,6.3923526,17326.0,17325.0,0.33429849]
[1673368450854,5.93459084,17326.0,17325.0,0.33429849]
[1673368451120,5.93459084,17326.0,17325.0,0.30086865]
[1673368451387,8.24929413,17326.0,17325.0,0.30086865]
[1673368451639,8.55167916,17326.0,17325.0,0.30086865]
[1673368453036,7.96981025,17326.0,17325.0,0.30086865]
[1673368453543,0.8069,17325.0,17324.0,0.00538224]
[1673368453803,8.31939326,17325.0,17324.0,0.00538224]
[1673368454251,8.37738379,17325.0,17324.0,0.00538224]
[1673368454272,8.37739084,17325.0,17324.0,0.00538224]
[1673368454515,7.79551217,17325.0,17324.0,0.00538224]
[1673368454773,8.23549379,17325.0,17324.0,0.00538224]
[1673368455037,7.93151217,17325.0,17324.0,0.00538224]
[1673368455310,8.51340871,17325.0,17324.0,0.00538224]
[1673368455554,7.93151217,17325.0,17324.0,0.00538224]
[1673368455812,8.0823401,17325.0,17324.0,0.00538224]
[1673368456066,0.8069,17324.0,17323.0,0.00354545]
[1673368456340,1.03753066,17323.0,17322.0,0.01241858]
[1673368456601,7.13202524,17323.0,17322.0,5.8e-07]
[1673368456864,7.43746381,17323.0,17322.0,5.8e-07]
[1673368457135,8.0748454,17323.0,17322.0,5.8e-07]
[1673368458178,10.0748454,17323.0,17322.0,5.8e-07]
[1673368458445,12.2118454,17323.0,17322.0,5.8e-07]
[1673368459431,12.0748454,17323.0,17321.0,0.00321349]
[1673368459433,12.8577104,17323.0,17321.0,0.00321349]
[1673368459688,0.8069,17321.0,17320.0,0.01339543]
[1673368459942,3.7167962,17321.0,17320.0,0.01339543]
[1673368460191,6.09261873,17321.0,17320.0,0.01339543]
[1673368460722,6.09261873,17321.0,17320.0,0.01182128]
[1673368460975,7.12966398,17321.0,17320.0,0.01182128]
[1673368461251,7.26666398,17321.0,17320.0,0.01182128]
[1673368461815,6.69162696,17321.0,17320.0,0.01024713]
[1673368462344,7.20867345,17321.0,17320.0,0.01024713]
[1673368462350,6.90867345,17321.0,17320.0,0.01024713]
[1673368462597,6.25462696,17321.0,17320.0,0.00867298]
[1673368462857,6.77167345,17321.0,17320.0,0.00867298]
[1673368463121,6.82966398,17321.0,17320.0,0.00867298]
[1673368463400,7.12966398,17321.0,17320.0,0.00867298]
[1673368463629,6.71296895,17321.0,17320.0,0.00709883]
[1673368463902,6.755386,17321.0,17320.0,0.00511709]
[1673368464150,7.33691211,17321.0,17320.0,0.00511709]
[1673368464429,7.47391211,17321.0,17320.0,0.00354294]
[1673368464928,7.53418915,17321.0,17320.0,0.00354294]
[1673368465177,6.95266304,17321.0,17320.0,0.00354294]
[1673368465433,7.53460934,17321.0,17320.0,0.00354294]
[1673368465738,7.53460934,17321.0,17320.0,0.00196879]
[1673368466197,7.68546135,17321.0,17320.0,0.00196879]
[1673368466455,7.68546135,17321.0,17320.0,0.00039464]
[1673368467019,7.6430443,17321.0,17320.0,0.00039464]
[1673368467256,7.6430443,17321.0,17320.0,0.00031262]
[1673368467530,0.8069,17320.0,17318.0,0.00654505]
[1673368467774,6.2059333,17320.0,17318.0,0.00654505]
[1673368468018,6.38737295,17320.0,17318.0,0.00654505]
[1673368468263,5.87019861,17320.0,17318.0,0.00654505]
[1673368468526,6.38749603,17320.0,17319.0,0.00459941]
[1673368468760,5.87001359,17320.0,17319.0,0.00459941]
[1673368469594,5.87001359,17320.0,17319.0,0.00302526]
[1673368469764,6.00601359,17320.0,17319.0,0.00302526]
[1673368470279,6.39995418,17320.0,17319.0,0.00302526]
[1673368470526,6.39995418,17320.0,17319.0,0.00145111]
[1673368470796,6.00599502,17320.0,17319.0,0.00145111]
[1673368471032,6.52320022,17320.0,17319.0,0.00145111]
[1673368471282,6.00600256,17320.0,17319.0,0.00145111]
[1673368471536,0.8069,17319.0,17318.0,0.00654505]
[1673368471794,5.40009496,17319.0,17318.0,0.00654505]
[1673368472079,4.8207039,17319.0,17318.0,0.00654505]
[1673368472344,5.66602487,17319.0,17318.0,0.00654505]
[1673368472591,5.66602487,17319.0,17318.0,0.0060709]
[1673368473086,6.23301019,17319.0,17318.0,0.0060709]
[1673368473636,6.23301019,17319.0,17318.0,0.00559675]
[1673368474684,6.23301019,17319.0,17318.0,0.0051226]
[1673368475187,5.66602487,17319.0,17318.0,0.0051226]
[1673368475438,6.95757728,17319.0,17318.0,0.0051226]
[1673368475698,6.95757728,17319.0,17318.0,0.00464845]
[1673368475955,6.23311287,17319.0,17318.0,0.00464845]
[1673368476471,6.23311287,17319.0,17318.0,0.0041743]
[1673368477327,6.23317287,17319.0,17318.0,0.0041743]
[1673368477594,5.05797208,17319.0,17318.0,0.00370015]
[1673368477849,5.04946531,17319.0,17318.0,0.00370015]
[1673368478107,5.49023451,17319.0,17318.0,0.00370015]
[1673368478665,5.49023451,17319.0,17318.0,0.003226]
[1673368478918,5.49873451,17319.0,17318.0,0.003226]
[1673368479173,5.67116334,17319.0,17318.0,0.003226]
[1673368479422,5.49877474,17319.0,17318.0,0.003226]
[1673368479669,5.79877474,17319.0,17318.0,0.003226]
[1673368480445,5.79877474,17319.0,17318.0,0.00275185]
[1673368480698,7.08204513,17319.0,17314.0,0.49119979]
[1673368480950,3.50588083,17318.0,17314.0,0.49119979]
[1673368481216,4.82175803,17318.0,17314.0,0.49119979]
[1673368481467,7.31952019,17318.0,17317.0,0.00545821]
[1673368481974,6.16803457,17318.0,17317.0,0.00545821]
[1673368482220,6.24704404,17318.0,17317.0,0.00545821]
[1673368482480,6.11004404,17318.0,17317.0,0.00388406]
[1673368482737,8.03772308,17318.0,17317.0,0.00388406]
[1673368483008,7.31949031,17318.0,17317.0,0.00388406]
[1673368483257,7.45649031,17318.0,17317.0,0.00388406]
[1673368483519,7.31949544,17318.0,17317.0,0.00230991]
[1673368483765,7.45549544,17318.0,17317.0,0.00230991]
[1673368484025,7.31949544,17318.0,17317.0,0.00230991]
[1673368484272,7.45649544,17318.0,17317.0,0.00230991]
[1673368484512,0.60799907,17316.0,17314.0,0.49119979]
[1673368484764,5.77702403,17315.0,17314.0,0.49119979]
[1673368485122,6.19249621,17315.0,17314.0,0.49119979]
[1673368485527,6.58324259,17315.0,17314.0,0.48962564]
[1673368485773,5.62506483,17315.0,17314.0,0.48962564]
[1673368486019,6.64247324,17315.0,17314.0,0.48962564]
[1673368486269,9.2958818,17315.0,17314.0,0.48962564]
[1673368486531,9.2958818,17315.0,17314.0,0.48805149]
[1673368487532,9.2958818,17315.0,17314.0,0.48647734]
[1673368488570,8.71930259,17315.0,17314.0,0.48490319]
[1673368488841,5.83310863,17315.0,17314.0,0.72258108]
[1673368489091,4.88644948,17315.0,17314.0,0.48490319]
[1673368489317,6.17817894,17315.0,17314.0,0.48490319]
[1673368489575,5.83316186,17315.0,17314.0,0.48332904]
[1673368490326,5.84166186,17315.0,17314.0,0.48332904]
[1673368490583,6.14160186,17315.0,17314.0,0.48332904]
[1673368491099,5.56406886,17315.0,17314.0,0.48332904]
[1673368491374,6.15111126,17315.0,17314.0,0.48332904]
[1673368493375,5.92775062,17315.0,17314.0,0.48332904]
[1673368493646,5.85111126,17315.0,17314.0,0.48332904]
[1673368493919,5.41034206,17315.0,17314.0,0.48332904]
[1673368494164,5.842181,17315.0,17314.0,0.48332904]
[1673368494648,6.142181,17315.0,17314.0,0.48302517]
[1673368495155,5.71034206,17315.0,17314.0,0.48302517]
[1673368495398,5.13280906,17315.0,17314.0,0.48302517]
[1673368495664,5.56479747,17315.0,17314.0,0.48145102]
[1673368496440,5.56479747,17315.0,17314.0,0.47987687]
[1673368496702,6.14233047,17315.0,17314.0,0.47987687]
[1673368496960,6.15111126,17315.0,17314.0,0.47987687]
[1673368497216,5.71034206,17315.0,17314.0,0.47987687]
[1673368497476,6.15111126,17315.0,17314.0,0.47830272]
[1673368498292,5.71034206,17315.0,17314.0,0.47830272]
[1673368498547,5.71034206,17315.0,17314.0,0.47672857]
[1673368499580,5.71034206,17315.0,17314.0,0.47515442]
[1673368500406,6.15111126,17315.0,17314.0,0.47515442]
[1673368500608,6.73050232,17315.0,17314.0,0.47358027]
[1673368501102,7.24791088,17315.0,17314.0,0.47358027]
[1673368501615,7.24791088,17315.0,17314.0,0.47199704]
[1673368501877,6.66851982,17315.0,17314.0,0.47199704]
[1673368502621,6.66851982,17315.0,17314.0,0.4704138]
[1673368502622,5.13280906,17315.0,17314.0,0.4704138]
[1673368503142,5.26485199,17315.0,17314.0,0.4704138]
[1673368503644,4.43900843,17315.0,17314.0,0.46883056]
[1673368503898,3.1104609,17315.0,17314.0,0.46883056]
[1673368504195,4.53478921,17315.0,17314.0,0.46883056]
[1673368504658,4.53478921,17315.0,17314.0,0.46725641]
[1673368505157,4.60290909,17315.0,17314.0,0.46725641]
[1673368505445,4.59438579,17315.0,17314.0,0.46725641]
[1673368505663,4.59438579,17315.0,17314.0,0.46567318]
[1673368505917,4.72938579,17315.0,17314.0,0.46667318]
[1673368506425,4.55657522,17315.0,17314.0,0.46667318]
[1673368506676,4.55657527,17315.0,17314.0,0.46508995]
[1673368506933,4.72938579,17315.0,17314.0,0.46508995]
[1673368507207,4.25657126,17315.0,17314.0,1.13150546]
[1673368507453,2.5670321,17315.0,17314.0,1.13150546]
[1673368507716,2.3078037,17315.0,17314.0,1.12992223]
[1673368508193,2.135,17315.0,17314.0,1.12992223]
[1673368508221,2.135,17315.0,17314.0,1.32992223]
[1673368508450,2.135,17315.0,17314.0,2.56373923]
[1673368508714,0.135,17315.0,17314.0,2.56216508]
[1673368508965,0.136,17315.0,17314.0,2.56216508]
[1673368509508,0.001,17315.0,17314.0,2.56116508]
[1673368509770,0.013,17315.0,17314.0,2.58559093]
[1673368510792,0.013,17315.0,17314.0,2.58401678]
[1673368511041,0.012,17315.0,17314.0,2.58401678]
[1673368511300,0.00215907,17316.0,17315.0,0.2]
[1673368511805,0.00215907,17316.0,17315.0,0.19842585]
[1673368512552,0.00715907,17316.0,17315.0,0.19842585]
[1673368512801,0.00215907,17316.0,17315.0,0.1968517]
[1673368513074,0.00715907,17316.0,17315.0,0.2178517]
[1673368513327,0.00715907,17316.0,17315.0,0.021]
[1673368513588,0.00715907,17316.0,17315.0,0.22627585]
[1673368513831,0.00715907,17316.0,17315.0,0.01942585]
[1673368514611,0.00715907,17316.0,17315.0,0.0178517]
[1673368514847,0.34614787,17316.0,17315.0,0.0178517]
[1673368515104,0.84007077,17316.0,17315.0,0.0178517]
[1673368515346,1.09929917,17316.0,17315.0,0.0178517]
[1673368515666,2.86846147,17316.0,17315.0,0.0178517]
[1673368515899,3.618776,17316.0,17315.0,0.0178517]
[1673368516134,4.45309409,17316.0,17315.0,0.0178517]
[1673368516381,4.07904169,17316.0,17315.0,0.0178517]
[1673368516637,4.59645025,17316.0,17315.0,0.01627755]
[1673368516942,4.64530992,17316.0,17314.0,0.45778427]
[1673368517138,2.58903915,17315.0,17314.0,0.45778427]
[1673368517381,3.81184682,17315.0,17314.0,0.45778427]
[1673368518416,3.94784682,17315.0,17314.0,0.45978427]
[1673368518660,3.94786811,17315.0,17314.0,0.45978427]
[1673368519157,2.92956591,17315.0,17314.0,0.45978427]
[1673368520411,1.22876974,17315.0,17314.0,0.45978427]
[1673368520947,0.96976938,17315.0,17314.0,0.45978427]
[1673368521195,0.83376938,17315.0,17314.0,0.45778427]
[1673368521447,0.66976938,17315.0,17314.0,0.45978427]
[1673368521702,0.136,17315.0,17314.0,0.45821012]
[1673368521960,0.136,17315.0,17314.0,0.65821012]
[1673368522230,0.136,17315.0,17314.0,0.45821012]
[1673368522743,0.136,17315.0,17314.0,0.45663597]
[1673368522997,0.336,17315.0,17314.0,0.45663597]
[1673368523334,0.30866138,17315.0,17314.0,0.45663597]
[1673368523532,0.136,17315.0,17314.0,0.45663597]
[1673368523771,0.136,17315.0,17314.0,0.45506182]
[1673368524541,0.136,17315.0,17314.0,0.45348767]
[1673368525308,0.30866138,17315.0,17314.0,0.45348767]
[1673368525563,0.60866138,17315.0,17314.0,0.45191352]
[1673368525854,0.96976938,17315.0,17314.0,0.45191352]
[1673368526630,1.22876974,17315.0,17314.0,0.45033937]
[1673368527160,0.86766174,17315.0,17314.0,0.45033937]
[1673368527429,2.38433969,17315.0,17314.0,0.45033937]
[1673368527680,2.38433969,17315.0,17314.0,0.44876522]
[1673368527944,2.38433552,17315.0,17314.0,0.44876522]
[1673368528203,2.38433343,17315.0,17314.0,0.44876522]
[1673368528467,0.56766174,17315.0,17314.0,0.44876522]
[1673368528722,0.56766174,17315.0,17314.0,0.44719107]
[1673368529477,0.56766174,17315.0,17314.0,0.44561692]
[1673368529768,2.58433187,17315.0,17314.0,0.44561692]
[1673368530273,2.58433103,17315.0,17314.0,0.44561692]
[1673368530532,2.22322303,17315.0,17314.0,0.44404277]
[1673368531118,2.58433103,17315.0,17314.0,0.44404277]
[1673368531582,2.56851899,17315.0,17314.0,0.44246862]
[1673368531877,2.75696561,17315.0,17314.0,0.44246862]
[1673368532128,2.39585761,17315.0,17314.0,0.44246862]
[1673368532399,2.75696561,17315.0,17314.0,0.44246862]
[1673368532651,2.75696561,17315.0,17314.0,0.44089447]
[1673368533430,3.02503322,17315.0,17314.0,0.44089447]
[1673368533950,2.59343849,17315.0,17314.0,0.44089447]
[1673368535517,2.15266929,17315.0,17314.0,0.43932032]
[1673368535776,4.71261656,17315.0,17314.0,0.43932032]
[1673368536365,4.72111656,17315.0,17314.0,0.43932032]
[1673368536561,5.31506423,17315.0,17314.0,0.43774617]
[1673368536786,4.73753123,17315.0,17314.0,0.43774617]
[1673368537073,4.86027104,17315.0,17314.0,0.43774617]